{"text_format":"3","workbook":"xlsx","n_sheets":2,"sheets":["Q2","Q3 & Q4"],"read":"whole","date_system":"1900"}

{"sheet":"Q2","index":0,"n_rows":20,"n_cols":8,"rows_kept":20,"merged":[[0,0,0,7]]}
["Q2 The number of households housed by the Council in temporary accommodation outside the Council’s area. \nPlease give the figure for each year 2018 to 2023. Please include the other Council areas households have been placed in."]
[]
[]
["Borough households placed in","2018","2019","2020","2021","2022","2023","Grand Total"]
["Ashford",null,2,1,null,null,1,{"$f":"SUM(B5:G5)","v":4}]
["Brighton and Hove",{"$nulls":3},1,2,1,{"$f":"SUM(B6:G6)","v":4}]
["Dartford",null,2,3,1,4,null,10]
["Dover",1,3,12,3,5,null,24]
["East Riding of Yorkshire",{"$nulls":5},1,1]
["Eastbourne",84,129,94,87,144,121,659]
["Hastings",168,387,539,654,741,768,3257]
["Lewes",{"$nulls":4},1,4,5]
["Maidstone",null,4,1,null,null,1,6]
["Medway",16,43,29,13,12,5,118]
["Rother",null,null,1,1,4,6,12]
["Shepway",null,null,1,{"$nulls":3},1]
["Tunbridge Wells",{"$nulls":4},1,null,1]
["Wealden",{"$nulls":4},1,null,1]
["Worthing",null,null,1,{"$nulls":3},1]
["Grand Total",269,570,682,760,915,908,4104]

{"sheet":"Q3 & Q4","index":1,"n_rows":6,"n_cols":7,"rows_kept":6,"merged":[[0,0,0,6]]}
["Q3 The number of deaths of people whilst housed by the Council in temporary accommodation in total. Please give the figure for each year 2018 to 2023.\nQ4. The number of deaths of people whilst housed by the Council in temporary accommodation outside the Council’s area. Please give the figure for each year 2018 to 2023."]
[]
["Deaths",2018,2019,2020,2021,2022,2023]
["In Borough",0,0,0,1,1,2]
["Outside of Borough",0,0,0,0,2,1]
["Total",{"$f":"SUM(B4:B5)","v":0},{"$f":"SUM(C4:C5)","v":0},0,1,3,3]